{"text_format":"1","workbook":"xlsx","n_sheets":2,"sheets":["1","2"],"not_rendered":{"charts":0,"images":0,"macros":1,"external_links":0,"defined_names":1,"comments":0,"pivot_tables":0},"unopened":[],"bounds":{"document_bytes":16777216,"sheet_cells":100000,"rows_first":2000,"rows_last":500,"rows_between":2000,"halvings":0,"cell_chars":16384,"cell_head_chars":4096},"cells_cut":0,"cells_raw":0,"read":"whole","date_system":"1900"}

{"sheet":"1","index":0,"n_rows":5,"n_cols":7,"rows_kept":5,"cut":false,"hidden":false,"merged":[]}
["Животные","Номер","Номер","Номер","Номер","Номер","Номер"]
["кролик"]
["чупакабра"]
["бобёр"]
["хомяк"]

{"sheet":"2","index":1,"n_rows":37,"n_cols":8,"rows_kept":37,"cut":false,"hidden":false,"merged":[]}
["Номер","характеристика","Животные","0","1",null,2,{"$f":"INDEX('1'!A:A,G1)","v":"кролик"}]
[22,"пушистый","кролик",{"$f":"IF(Таблица1[[#This Row],[Животные]]=H$1,IF(ISNA(MATCH(Таблица1[[#This Row],[Номер]],INDEX('1'!$1:$1048576,G$1,),)),D1+1,D1),D1)","v":1},{"$f":"IFERROR(INDEX(Таблица1[Номер],MATCH(ROW(E1),Таблица1[0],))&\" | \"&INDEX(Таблица1[характеристика],MATCH(ROW(E1),Таблица1[0],)),\"|\")","v":"22 | пушистый"}]
[33,"вкусный","кролик",{"$f":"IF(Таблица1[[#This Row],[Животные]]=H$1,IF(ISNA(MATCH(Таблица1[[#This Row],[Номер]],INDEX('1'!$1:$1048576,G$1,),)),D2+1,D2),D2)","v":2},{"$f":"IFERROR(INDEX(Таблица1[Номер],MATCH(ROW(E2),Таблица1[0],))&\" | \"&INDEX(Таблица1[характеристика],MATCH(ROW(E2),Таблица1[0],)),\"|\")","v":"33 | вкусный"},null,{"$f":"IF(E2=\"|\",\"|\",\"E2:E\"&MATCH(\"|\",Таблица1[1],))","v":"E2:E7"}]
[44,"породистый","кролик",{"$f":"IF(Таблица1[[#This Row],[Животные]]=H$1,IF(ISNA(MATCH(Таблица1[[#This Row],[Номер]],INDEX('1'!$1:$1048576,G$1,),)),D3+1,D3),D3)","v":3},{"$f":"IFERROR(INDEX(Таблица1[Номер],MATCH(ROW(E3),Таблица1[0],))&\" | \"&INDEX(Таблица1[характеристика],MATCH(ROW(E3),Таблица1[0],)),\"|\")","v":"44 | породистый"},null,{"$f":"CELL(\"filename\",H5)","v":"D:\\[219 (1).xlsm]2"}]
[55,"мертвый","кролик",{"$f":"IF(Таблица1[[#This Row],[Животные]]=H$1,IF(ISNA(MATCH(Таблица1[[#This Row],[Номер]],INDEX('1'!$1:$1048576,G$1,),)),D4+1,D4),D4)","v":4},{"$f":"IFERROR(INDEX(Таблица1[Номер],MATCH(ROW(E4),Таблица1[0],))&\" | \"&INDEX(Таблица1[характеристика],MATCH(ROW(E4),Таблица1[0],)),\"|\")","v":"55 | мертвый"},null,{"$f":"\"'\"&MID(G4,SEARCH(\"]\",G4)+1,31)&\"'!\"&G3","v":"'2'!E2:E7"}]
[66,"ушастый","кролик",{"$f":"IF(Таблица1[[#This Row],[Животные]]=H$1,IF(ISNA(MATCH(Таблица1[[#This Row],[Номер]],INDEX('1'!$1:$1048576,G$1,),)),D5+1,D5),D5)","v":5},{"$f":"IFERROR(INDEX(Таблица1[Номер],MATCH(ROW(E5),Таблица1[0],))&\" | \"&INDEX(Таблица1[характеристика],MATCH(ROW(E5),Таблица1[0],)),\"|\")","v":"66 | ушастый"}]
[77,"великан","кролик",{"$f":"IF(Таблица1[[#This Row],[Животные]]=H$1,IF(ISNA(MATCH(Таблица1[[#This Row],[Номер]],INDEX('1'!$1:$1048576,G$1,),)),D6+1,D6),D6)","v":6},{"$f":"IFERROR(INDEX(Таблица1[Номер],MATCH(ROW(E6),Таблица1[0],))&\" | \"&INDEX(Таблица1[характеристика],MATCH(ROW(E6),Таблица1[0],)),\"|\")","v":"77 | великан"}]
[88,null,"бобёр",{"$f":"IF(Таблица1[[#This Row],[Животные]]=H$1,IF(ISNA(MATCH(Таблица1[[#This Row],[Номер]],INDEX('1'!$1:$1048576,G$1,),)),D7+1,D7),D7)","v":6},{"$f":"IFERROR(INDEX(Таблица1[Номер],MATCH(ROW(E7),Таблица1[0],))&\" | \"&INDEX(Таблица1[характеристика],MATCH(ROW(E7),Таблица1[0],)),\"|\")","v":"|"}]
[99,null,"бобёр",{"$f":"IF(Таблица1[[#This Row],[Животные]]=H$1,IF(ISNA(MATCH(Таблица1[[#This Row],[Номер]],INDEX('1'!$1:$1048576,G$1,),)),D8+1,D8),D8)","v":6},{"$f":"IFERROR(INDEX(Таблица1[Номер],MATCH(ROW(E8),Таблица1[0],))&\" | \"&INDEX(Таблица1[характеристика],MATCH(ROW(E8),Таблица1[0],)),\"|\")","v":"|"}]
[110,null,"бобёр",{"$f":"IF(Таблица1[[#This Row],[Животные]]=H$1,IF(ISNA(MATCH(Таблица1[[#This Row],[Номер]],INDEX('1'!$1:$1048576,G$1,),)),D9+1,D9),D9)","v":6},{"$f":"IFERROR(INDEX(Таблица1[Номер],MATCH(ROW(E9),Таблица1[0],))&\" | \"&INDEX(Таблица1[характеристика],MATCH(ROW(E9),Таблица1[0],)),\"|\")","v":"|"}]
[121,null,"бобёр",{"$f":"IF(Таблица1[[#This Row],[Животные]]=H$1,IF(ISNA(MATCH(Таблица1[[#This Row],[Номер]],INDEX('1'!$1:$1048576,G$1,),)),D10+1,D10),D10)","v":6},{"$f":"IFERROR(INDEX(Таблица1[Номер],MATCH(ROW(E10),Таблица1[0],))&\" | \"&INDEX(Таблица1[характеристика],MATCH(ROW(E10),Таблица1[0],)),\"|\")","v":"|"}]
[132,null,"бобёр",{"$f":"IF(Таблица1[[#This Row],[Животные]]=H$1,IF(ISNA(MATCH(Таблица1[[#This Row],[Номер]],INDEX('1'!$1:$1048576,G$1,),)),D11+1,D11),D11)","v":6},{"$f":"IFERROR(INDEX(Таблица1[Номер],MATCH(ROW(E11),Таблица1[0],))&\" | \"&INDEX(Таблица1[характеристика],MATCH(ROW(E11),Таблица1[0],)),\"|\")","v":"|"}]
[143,null,"бобёр",{"$f":"IF(Таблица1[[#This Row],[Животные]]=H$1,IF(ISNA(MATCH(Таблица1[[#This Row],[Номер]],INDEX('1'!$1:$1048576,G$1,),)),D12+1,D12),D12)","v":6},{"$f":"IFERROR(INDEX(Таблица1[Номер],MATCH(ROW(E12),Таблица1[0],))&\" | \"&INDEX(Таблица1[характеристика],MATCH(ROW(E12),Таблица1[0],)),\"|\")","v":"|"}]
[154,null,"хомяк",{"$f":"IF(Таблица1[[#This Row],[Животные]]=H$1,IF(ISNA(MATCH(Таблица1[[#This Row],[Номер]],INDEX('1'!$1:$1048576,G$1,),)),D13+1,D13),D13)","v":6},{"$f":"IFERROR(INDEX(Таблица1[Номер],MATCH(ROW(E13),Таблица1[0],))&\" | \"&INDEX(Таблица1[характеристика],MATCH(ROW(E13),Таблица1[0],)),\"|\")","v":"|"}]
[165,null,"хомяк",{"$f":"IF(Таблица1[[#This Row],[Животные]]=H$1,IF(ISNA(MATCH(Таблица1[[#This Row],[Номер]],INDEX('1'!$1:$1048576,G$1,),)),D14+1,D14),D14)","v":6},{"$f":"IFERROR(INDEX(Таблица1[Номер],MATCH(ROW(E14),Таблица1[0],))&\" | \"&INDEX(Таблица1[характеристика],MATCH(ROW(E14),Таблица1[0],)),\"|\")","v":"|"}]
[176,null,"хомяк",{"$f":"IF(Таблица1[[#This Row],[Животные]]=H$1,IF(ISNA(MATCH(Таблица1[[#This Row],[Номер]],INDEX('1'!$1:$1048576,G$1,),)),D15+1,D15),D15)","v":6},{"$f":"IFERROR(INDEX(Таблица1[Номер],MATCH(ROW(E15),Таблица1[0],))&\" | \"&INDEX(Таблица1[характеристика],MATCH(ROW(E15),Таблица1[0],)),\"|\")","v":"|"}]
[187,null,"хомяк",{"$f":"IF(Таблица1[[#This Row],[Животные]]=H$1,IF(ISNA(MATCH(Таблица1[[#This Row],[Номер]],INDEX('1'!$1:$1048576,G$1,),)),D16+1,D16),D16)","v":6},{"$f":"IFERROR(INDEX(Таблица1[Номер],MATCH(ROW(E16),Таблица1[0],))&\" | \"&INDEX(Таблица1[характеристика],MATCH(ROW(E16),Таблица1[0],)),\"|\")","v":"|"}]
[198,null,"хомяк",{"$f":"IF(Таблица1[[#This Row],[Животные]]=H$1,IF(ISNA(MATCH(Таблица1[[#This Row],[Номер]],INDEX('1'!$1:$1048576,G$1,),)),D17+1,D17),D17)","v":6},{"$f":"IFERROR(INDEX(Таблица1[Номер],MATCH(ROW(E17),Таблица1[0],))&\" | \"&INDEX(Таблица1[характеристика],MATCH(ROW(E17),Таблица1[0],)),\"|\")","v":"|"}]
[209,null,"хомяк",{"$f":"IF(Таблица1[[#This Row],[Животные]]=H$1,IF(ISNA(MATCH(Таблица1[[#This Row],[Номер]],INDEX('1'!$1:$1048576,G$1,),)),D18+1,D18),D18)","v":6},{"$f":"IFERROR(INDEX(Таблица1[Номер],MATCH(ROW(E18),Таблица1[0],))&\" | \"&INDEX(Таблица1[характеристика],MATCH(ROW(E18),Таблица1[0],)),\"|\")","v":"|"}]
[220,null,"выдра",{"$f":"IF(Таблица1[[#This Row],[Животные]]=H$1,IF(ISNA(MATCH(Таблица1[[#This Row],[Номер]],INDEX('1'!$1:$1048576,G$1,),)),D19+1,D19),D19)","v":6},{"$f":"IFERROR(INDEX(Таблица1[Номер],MATCH(ROW(E19),Таблица1[0],))&\" | \"&INDEX(Таблица1[характеристика],MATCH(ROW(E19),Таблица1[0],)),\"|\")","v":"|"}]
[231,null,"выдра",{"$f":"IF(Таблица1[[#This Row],[Животные]]=H$1,IF(ISNA(MATCH(Таблица1[[#This Row],[Номер]],INDEX('1'!$1:$1048576,G$1,),)),D20+1,D20),D20)","v":6},{"$f":"IFERROR(INDEX(Таблица1[Номер],MATCH(ROW(E20),Таблица1[0],))&\" | \"&INDEX(Таблица1[характеристика],MATCH(ROW(E20),Таблица1[0],)),\"|\")","v":"|"}]
[242,null,"выдра",{"$f":"IF(Таблица1[[#This Row],[Животные]]=H$1,IF(ISNA(MATCH(Таблица1[[#This Row],[Номер]],INDEX('1'!$1:$1048576,G$1,),)),D21+1,D21),D21)","v":6},{"$f":"IFERROR(INDEX(Таблица1[Номер],MATCH(ROW(E21),Таблица1[0],))&\" | \"&INDEX(Таблица1[характеристика],MATCH(ROW(E21),Таблица1[0],)),\"|\")","v":"|"}]
[253,null,"выдра",{"$f":"IF(Таблица1[[#This Row],[Животные]]=H$1,IF(ISNA(MATCH(Таблица1[[#This Row],[Номер]],INDEX('1'!$1:$1048576,G$1,),)),D22+1,D22),D22)","v":6},{"$f":"IFERROR(INDEX(Таблица1[Номер],MATCH(ROW(E22),Таблица1[0],))&\" | \"&INDEX(Таблица1[характеристика],MATCH(ROW(E22),Таблица1[0],)),\"|\")","v":"|"}]
[264,null,"выдра",{"$f":"IF(Таблица1[[#This Row],[Животные]]=H$1,IF(ISNA(MATCH(Таблица1[[#This Row],[Номер]],INDEX('1'!$1:$1048576,G$1,),)),D23+1,D23),D23)","v":6},{"$f":"IFERROR(INDEX(Таблица1[Номер],MATCH(ROW(E23),Таблица1[0],))&\" | \"&INDEX(Таблица1[характеристика],MATCH(ROW(E23),Таблица1[0],)),\"|\")","v":"|"}]
[275,null,"выдра",{"$f":"IF(Таблица1[[#This Row],[Животные]]=H$1,IF(ISNA(MATCH(Таблица1[[#This Row],[Номер]],INDEX('1'!$1:$1048576,G$1,),)),D24+1,D24),D24)","v":6},{"$f":"IFERROR(INDEX(Таблица1[Номер],MATCH(ROW(E24),Таблица1[0],))&\" | \"&INDEX(Таблица1[характеристика],MATCH(ROW(E24),Таблица1[0],)),\"|\")","v":"|"}]
[286,null,"чупакабра",{"$f":"IF(Таблица1[[#This Row],[Животные]]=H$1,IF(ISNA(MATCH(Таблица1[[#This Row],[Номер]],INDEX('1'!$1:$1048576,G$1,),)),D25+1,D25),D25)","v":6},{"$f":"IFERROR(INDEX(Таблица1[Номер],MATCH(ROW(E25),Таблица1[0],))&\" | \"&INDEX(Таблица1[характеристика],MATCH(ROW(E25),Таблица1[0],)),\"|\")","v":"|"}]
[297,null,"чупакабра",{"$f":"IF(Таблица1[[#This Row],[Животные]]=H$1,IF(ISNA(MATCH(Таблица1[[#This Row],[Номер]],INDEX('1'!$1:$1048576,G$1,),)),D26+1,D26),D26)","v":6},{"$f":"IFERROR(INDEX(Таблица1[Номер],MATCH(ROW(E26),Таблица1[0],))&\" | \"&INDEX(Таблица1[характеристика],MATCH(ROW(E26),Таблица1[0],)),\"|\")","v":"|"}]
[308,null,"чупакабра",{"$f":"IF(Таблица1[[#This Row],[Животные]]=H$1,IF(ISNA(MATCH(Таблица1[[#This Row],[Номер]],INDEX('1'!$1:$1048576,G$1,),)),D27+1,D27),D27)","v":6},{"$f":"IFERROR(INDEX(Таблица1[Номер],MATCH(ROW(E27),Таблица1[0],))&\" | \"&INDEX(Таблица1[характеристика],MATCH(ROW(E27),Таблица1[0],)),\"|\")","v":"|"}]
[319,null,"чупакабра",{"$f":"IF(Таблица1[[#This Row],[Животные]]=H$1,IF(ISNA(MATCH(Таблица1[[#This Row],[Номер]],INDEX('1'!$1:$1048576,G$1,),)),D28+1,D28),D28)","v":6},{"$f":"IFERROR(INDEX(Таблица1[Номер],MATCH(ROW(E28),Таблица1[0],))&\" | \"&INDEX(Таблица1[характеристика],MATCH(ROW(E28),Таблица1[0],)),\"|\")","v":"|"}]
[330,null,"чупакабра",{"$f":"IF(Таблица1[[#This Row],[Животные]]=H$1,IF(ISNA(MATCH(Таблица1[[#This Row],[Номер]],INDEX('1'!$1:$1048576,G$1,),)),D29+1,D29),D29)","v":6},{"$f":"IFERROR(INDEX(Таблица1[Номер],MATCH(ROW(E29),Таблица1[0],))&\" | \"&INDEX(Таблица1[характеристика],MATCH(ROW(E29),Таблица1[0],)),\"|\")","v":"|"}]
[341,null,"чупакабра",{"$f":"IF(Таблица1[[#This Row],[Животные]]=H$1,IF(ISNA(MATCH(Таблица1[[#This Row],[Номер]],INDEX('1'!$1:$1048576,G$1,),)),D30+1,D30),D30)","v":6},{"$f":"IFERROR(INDEX(Таблица1[Номер],MATCH(ROW(E30),Таблица1[0],))&\" | \"&INDEX(Таблица1[характеристика],MATCH(ROW(E30),Таблица1[0],)),\"|\")","v":"|"}]
[null,null,null,{"$f":"IF(Таблица1[[#This Row],[Животные]]=H$1,IF(ISNA(MATCH(Таблица1[[#This Row],[Номер]],INDEX('1'!$1:$1048576,G$1,),)),D31+1,D31),D31)","v":6},{"$f":"IFERROR(INDEX(Таблица1[Номер],MATCH(ROW(E31),Таблица1[0],))&\" | \"&INDEX(Таблица1[характеристика],MATCH(ROW(E31),Таблица1[0],)),\"|\")","v":"|"}]
[null,null,null,{"$f":"IF(Таблица1[[#This Row],[Животные]]=H$1,IF(ISNA(MATCH(Таблица1[[#This Row],[Номер]],INDEX('1'!$1:$1048576,G$1,),)),D32+1,D32),D32)","v":6},{"$f":"IFERROR(INDEX(Таблица1[Номер],MATCH(ROW(E32),Таблица1[0],))&\" | \"&INDEX(Таблица1[характеристика],MATCH(ROW(E32),Таблица1[0],)),\"|\")","v":"|"}]
[null,null,null,{"$f":"IF(Таблица1[[#This Row],[Животные]]=H$1,IF(ISNA(MATCH(Таблица1[[#This Row],[Номер]],INDEX('1'!$1:$1048576,G$1,),)),D33+1,D33),D33)","v":6},{"$f":"IFERROR(INDEX(Таблица1[Номер],MATCH(ROW(E33),Таблица1[0],))&\" | \"&INDEX(Таблица1[характеристика],MATCH(ROW(E33),Таблица1[0],)),\"|\")","v":"|"}]
[null,null,null,{"$f":"IF(Таблица1[[#This Row],[Животные]]=H$1,IF(ISNA(MATCH(Таблица1[[#This Row],[Номер]],INDEX('1'!$1:$1048576,G$1,),)),D34+1,D34),D34)","v":6},{"$f":"IFERROR(INDEX(Таблица1[Номер],MATCH(ROW(E34),Таблица1[0],))&\" | \"&INDEX(Таблица1[характеристика],MATCH(ROW(E34),Таблица1[0],)),\"|\")","v":"|"}]
[null,null,null,{"$f":"IF(Таблица1[[#This Row],[Животные]]=H$1,IF(ISNA(MATCH(Таблица1[[#This Row],[Номер]],INDEX('1'!$1:$1048576,G$1,),)),D35+1,D35),D35)","v":6},{"$f":"IFERROR(INDEX(Таблица1[Номер],MATCH(ROW(E35),Таблица1[0],))&\" | \"&INDEX(Таблица1[характеристика],MATCH(ROW(E35),Таблица1[0],)),\"|\")","v":"|"}]
[null,null,null,{"$f":"IF(Таблица1[[#This Row],[Животные]]=H$1,IF(ISNA(MATCH(Таблица1[[#This Row],[Номер]],INDEX('1'!$1:$1048576,G$1,),)),D36+1,D36),D36)","v":6},{"$f":"IFERROR(INDEX(Таблица1[Номер],MATCH(ROW(E36),Таблица1[0],))&\" | \"&INDEX(Таблица1[характеристика],MATCH(ROW(E36),Таблица1[0],)),\"|\")","v":"|"}]